fUSD/lending_fUSD_20251101
["ID","MTS","AMOUNT","RATE_DAILY","PERIOD"]
[392807220,1761978632165,-500.8810386,0.00014873,2]
[392807221,1761978632174,-337.82055885,0.00014873,2]
[392807222,1761978632185,-500.0,0.00014873,2]
[392807223,1761978632195,-500.0,0.00014873,2]
[392807224,1761978632205,-179.88094719,0.00014873,2]
[392807225,1761978632214,-465.0,0.00014883,2]
[392807226,1761978632224,-311.0,0.00014884,2]
[392807227,1761978632233,-440.0,0.00014895,2]
[392807228,1761978632243,-5014.23209469,0.00014898,2]
[392807229,1761978632253,-150.0,0.00014898,2]
[392807230,1761978632263,-5014.23209468,0.00014898,2]
[392807231,1761978632272,-5014.23209468,0.00014898,2]
[392807232,1761978632282,-5014.23209468,0.00014899,2]
[392807233,1761978632292,-5014.23209468,0.00014899,2]
[392807234,1761978632302,-5014.23209468,0.00014899,2]
[392807235,1761978632312,-5014.23209468,0.00014899,2]
[392807236,1761978632324,-5014.23209468,0.000149,2]
[392807237,1761978632334,-5014.23209468,0.000149,2]
[392807238,1761978632343,-1000.0,0.000149,2]
[392807239,1761978632353,-5014.23209468,0.000149,2]
[392807240,1761978632363,-174.70037359,0.000149,2]
[392807241,1761978632372,-150.0,0.000149,2]
[392807242,1761978632381,-415.29,0.000149,2]
[392807243,1761978632391,-150.0,0.000149,2]
[392807244,1761978632400,-476.55,0.000149,2]
[392807245,1761978632409,-202.03,0.000149,2]
[392807246,1761978632419,-209.1703668,0.000149,2]
[392807247,1761978632428,-761.0,0.000149,2]
[392807248,1761978632437,-454.56391596,0.000149,2]
[392807249,1761978632447,-150.0,0.000149,2]
[392807250,1761978632457,-1537.0,0.00014913,2]
[392807251,1761978632467,-1257.0,0.00014943,2]
[392807252,1761978632476,-1733.0,0.00014972,2]
[392807253,1761978632485,-375.69831699,0.00014973,2]
[392807254,1761978632494,-500.0,0.00014973,2]
[392807255,1761978632503,-500.0,0.00014973,2]
[392807256,1761978632512,-500.0,0.00014973,2]
[392807257,1761978632524,-500.97625752,0.00014973,2]
[392807258,1761978632533,-500.0,0.00014973,2]
[392807259,1761978632543,-503.22679001,0.00014973,2]
[392807260,1761978632552,-512.17456218,0.00014973,2]
[392807261,1761978632562,-500.0,0.00014973,2]
[392807262,1761978632572,-155.10385458,0.00014973,2]
[392807263,1761978632581,-514.21510557,0.00014973,2]
[392807264,1761978632591,-500.0,0.00014973,2]
[392807265,1761978632600,-500.0,0.00014973,2]
[392807266,1761978632609,-500.0,0.00014973,2]
[392807267,1761978632618,-626.33719579,0.00014979,2]
[392807268,1761978632627,-500.0,0.00014979,2]
[392807269,1761978632637,-500.0,0.00014979,2]
[392807270,1761978632646,-512.01858178,0.00014979,2]
[392807271,1761978632655,-84470.00309175,0.0001498,2]
[392807272,1761978632711,-565.0,0.0001498,2]
[392807273,1761978632722,-2623.40982985,0.0001498,2]
[392807274,1761978632733,-5523.1795,0.0001498,2]
[392807275,1761978632745,-773.07374482,0.0001498,2]
[392807276,1761978632769,-1231.20141571,0.0001498,2]
[392807277,1761978632781,-3400.95379376,0.0001498,2]
[392807278,1761978632790,-440.0,0.00014983,2]
[392807279,1761978632800,-59884.13249965,0.0001499,2]
[392807280,1761978632811,-29283.97665123,0.0001499,2]
[392807281,1761978632820,-512.63502965,0.00014999,2]
[392807282,1761978632829,-354.05632821,0.00014999,2]
[392807283,1761978632838,-176.01047026,0.00014999,2]
[392807284,1761978632848,-240.27887574,0.00014999,2]
[392807285,1761978632857,-500.0,0.00014999,2]
[392807286,1761978632866,-506.50098818,0.00014999,2]
[392807287,1761978632875,-682.64160043,0.00014999,2]
[392807288,1761978632884,-666.0,0.00014999,2]
[392807289,1761978632893,-4437.58873523,0.00015,2]
[392807374,1761978637896,-500.0,0.00014873,2]
[392807375,1761978637907,-402.32163095,0.00015,2]
[392807376,1761978638011,-441.3409858,0.00015,2]
[392807377,1761978638071,-419.075,0.00015,2]
[392807378,1761978638130,-2820358.87442053,0.00015,2]
[392807379,1761978638142,-296.93475073,0.00015,2]
[392807380,1761978638154,-200.0,0.00015,2]
[392807381,1761978638164,-41537.06502871,0.00015,2]
[392807382,1761978638176,-712.70455709,0.00015,2]
[392807383,1761978638189,-1512.06814833,0.00015,2]
[392807415,1761978640302,-1348916.9873715,0.00015,2]
[392807416,1761978640314,-571.8396434,0.00015,2]
[392807419,1761978643116,-1430.48192125,0.00015,2]
[392807420,1761978646525,-161.13954148,0.000149,2]
[392807421,1761978646535,-11490.21230168,0.00015,2]
[392807426,1761978722223,181.17,7.095e-05,2]
[392807427,1761978722424,181.17,7.468e-05,2]
[392807428,1761978722618,181.17,7.841e-05,2]
[392807429,1761978722810,181.17,8.215e-05,2]
[392807430,1761978723207,181.17,8.588e-05,2]
[392807431,1761978723402,181.17,8.962e-05,2]
[392807432,1761978723642,181.17,9.335e-05,2]
[392807433,1761978723826,181.17,9.708e-05,2]
[392807434,1761978724001,181.17,0.00010082,2]
[392807435,1761978724213,181.17,0.00010455,2]
[392807436,1761978724420,181.17,0.00010829,2]
[392807437,1761978724624,181.17,0.00011202,2]
[392807438,1761978724819,181.17,0.00011575,2]
[392807439,1761978725012,181.17,0.00011949,2]
[392807440,1761978725222,181.17,0.00012322,2]
[392807441,1761978725424,181.17,0.00012696,2]
[392807442,1761978725642,181.17,0.00013069,2]
[392807443,1761978726042,181.17,0.00013442,2]
[392807444,1761978726264,181.17,0.00013816,2]
[392807448,1761978857814,-181.17,0.00014189,2]
[392807449,1761978857847,-1833.095,0.000147,2]
[392807450,1761978857879,-168.0,0.00014828,2]
[392807451,1761978857908,-2500.0,0.0001489,2]
[392807452,1761978857941,-287.0,0.00014899,2]
[392807453,1761978858149,-432.76920409,0.000149,2]
[392807454,1761978858176,-3242.71188726,0.000149,2]
[392807455,1761978858204,-1200.0,0.00014919,2]
[392807456,1761978858431,-2500.0,0.0001492,2]
[392807457,1761978858461,-250.0,0.0001494,2]
[392807458,1761978858491,-195.0,0.0001494,2]
[392807459,1761978858520,-1610.01,0.00014966,2]
[392807460,1761978858788,-889.99,0.00014966,2]
[392807461,1761978858819,-2558.2441247,0.00014966,2]
[392807462,1761978858847,-500.0,0.00014973,2]
[392807463,1761978858876,-164.34626945,0.00014973,2]
[392807464,1761978858904,-500.75904731,0.00014973,2]
[392807465,1761978858934,-273.33111708,0.00014973,2]
[392807466,1761978859374,-226.66888292,0.00014973,2]
[392807467,1761978859404,-500.88687561,0.00014973,2]
[392807468,1761978859434,-500.0,0.00014989,2]
[392807469,1761978859463,-150.0,0.00014998,2]
[392807470,1761978859491,-500.0,0.00014999,2]
[392807471,1761978859523,-500.0,0.00014999,2]
[392807472,1761978859552,-189.26097658,0.00014999,2]
[392807473,1761978860684,-9675.89732421,0.00014999,2]
[392807474,1761978860843,-10000.01,0.00014999,2]
[392807475,1761978861021,-10000.01,0.00014999,2]
[392807476,1761978861733,-10000.01,0.00014999,2]
[392807477,1761978861962,-2924.94533141,0.00014999,2]
[392807478,1761978861986,-4150.11933718,0.00014999,2]
[392807479,1761978862223,-500.0,0.00014999,2]
[392807480,1761978862256,-500.0,0.00014999,2]
[392807481,1761978862289,-500.0,0.00014999,2]
[392807482,1761978862331,-500.0,0.00014999,2]
[392807483,1761978862368,-185.12504348,0.00014999,2]
[392807484,1761978862478,-5629.75991304,0.00015,2]
[392807485,1761978862513,-10000.01,0.00015,2]
[392807486,1761978862642,-10000.01,0.00015,2]
[392807487,1761978862847,-10000.01,0.00015,2]
[392807488,1761978863114,-10000.01,0.00015,2]
[392807489,1761978867003,-10000.01,0.00015,2]
[392807490,1761978867333,-10000.01,0.00015,2]
[392807491,1761978867546,-10000.01,0.00015,2]
[392807492,1761978868361,-10000.01,0.00015,2]
[392807493,1761978868695,-10000.01,0.00015,2]
[392807494,1761978868926,-10000.01,0.00015,2]
[392807495,1761978869121,-10000.01,0.00015,2]
[392807496,1761978869316,-10000.01,0.00015,2]
[392807497,1761978869539,-10000.01,0.00015,2]
[392807498,1761978870033,-10000.01,0.00015,2]
[392807510,1761979360383,731.41,0.00013699,2]
[392807514,1761979400345,200.0,0.00013589,2]
[392807517,1761979515434,150.0,0.00013488,2]
[392807518,1761979515758,151.83822993,0.00013488,2]
[392807519,1761979523832,150.00000001,0.00013488,2]
[392807533,1761979698039,-162.5917353,0.00014,2]
[392807534,1761979698060,-218.6843129,0.0001406,2]
[392807957,1761979832111,-31.3156871,0.0001406,2]
[392807958,1761979832120,-200.0,0.00014082,2]
[392807959,1761979832129,-150.0,0.0001412,2]
[392807960,1761979832139,-518.6843129,0.00014561,2]
[392807961,1761979832150,-389.38308288,0.00014561,2]
[392807962,1761979832160,-559.210848,0.00014716,2]
[392807964,1761979832173,-246.0,0.00014899,2]
[392807966,1761979832182,-300.0,0.00014899,2]
[392807967,1761979832191,-1200.0,0.00014899,2]
[392807968,1761979832199,-1194.59058327,0.000149,2]
[392807969,1761979832209,-609.1353295,0.000149,2]
[392807970,1761979832220,-511.27727383,0.000149,2]
[392807972,1761979832466,-74.17797993,0.000149,2]
[392807974,1761979832475,-162.77447744,0.000149,2]
[392807976,1761979832485,-2309.80359165,0.000149,2]
[392807979,1761979832496,-871.98025582,0.000149,2]
[392807981,1761979832510,-258.38525471,0.000149,2]
[392807983,1761979832520,-801.98263016,0.000149,2]
[392807987,1761979832543,-358.40494723,0.000149,2]
[392807989,1761979832552,-248.71531821,0.00014964,2]
[392807991,1761979832561,-150.0,0.00014972,2]
[392807992,1761979832569,-118.76900813,0.00014973,2]
[392807996,1761979832593,-381.23099187,0.00014973,2]
[392807998,1761979832602,-500.0,0.00014973,2]
[392808000,1761979832610,-620.44438584,0.00014973,2]
[392808002,1761979832620,-500.0,0.00014973,2]
[392808004,1761979832629,-500.0,0.00014973,2]
[392808006,1761979832639,-500.0,0.00014973,2]
[392808008,1761979832648,-500.0,0.00014973,2]
[392808009,1761979832656,-46.38368682,0.00014973,2]
[392808011,1761979832672,-453.61631318,0.00014973,2]
[392808012,1761979832681,-500.0,0.00014973,2]
[392808013,1761979832690,-217.68277019,0.00014973,2]
[392808014,1761979832699,-500.0,0.00014973,2]
[392808015,1761979832709,-504.09888103,0.00014973,2]
[392808016,1761979832719,-500.0,0.00014973,2]
[392808017,1761979832728,-500.0,0.00014973,2]
[392808018,1761979832737,-500.0,0.00014973,2]
[392808019,1761979832746,-374.63255747,0.00014973,2]
[392808020,1761979832757,-500.0,0.00014973,2]
[392808021,1761979832766,-163.98975285,0.00014973,2]
[392808022,1761979832775,-265.80388246,0.00014973,2]
[392808023,1761979838156,-234.19611754,0.00014973,2]
[392808024,1761979838166,-428.47528746,0.00014973,2]
[392808025,1761979838272,-71.52471254,0.00014973,2]
[392808026,1761979838282,-206.76601335,0.00014973,2]
[392808027,1761979838293,-293.23398665,0.00014973,2]
[392808028,1761979838303,-501.05311295,0.00014973,2]
[392808029,1761979838312,-500.0,0.00014973,2]
[392808030,1761979838322,-193.53217223,0.0001499,2]
[392808031,1761979838331,-139.58072817,0.00014991,2]
[392808034,1761979838342,-1387.89451043,0.00014991,2]
[392808036,1761979838352,-646.65982734,0.00014991,2]
[392808038,1761979838361,-500.0,0.00014991,2]
[392808040,1761979838370,-250.0,0.00014991,2]
[392808042,1761979838379,-322.6107,0.00014991,2]
[392808044,1761979838388,-500.0,0.00014991,2]
[392808046,1761979838397,-500.0,0.00014991,2]
[392808048,1761979838406,-156.70841714,0.00014991,2]
[392808071,1761979838604,-500.0,0.00014991,2]
[392808073,1761979838617,-500.0,0.00014991,2]
[392808075,1761979838627,-152.30214979,0.00014991,2]
[392808077,1761979838636,-500.0,0.00014991,2]
[392808078,1761979838645,-500.0,0.00014991,2]
[392808079,1761979838654,-164.39279166,0.00014991,2]
[392808080,1761979838663,-500.0,0.00014991,2]
[392808081,1761979838672,-500.0,0.00014991,2]
[392808082,1761979838682,-500.0,0.00014991,2]
[392808083,1761979838691,-541.37027117,0.00014991,2]
[392808084,1761979838701,-235.02964706,0.00014991,2]
[392808085,1761979838710,-211.11556816,0.00014991,2]
[392808087,1761979838719,-250.0,0.00014991,2]
[392808088,1761979838729,-514.84070869,0.00014991,2]
[392808090,1761979838738,-187.78006525,0.00014991,2]
[392808091,1761979838748,-535.90639727,0.00014991,2]
[392808093,1761979838757,-250.0,0.00014991,2]
[392808095,1761979838766,-205.48895127,0.00014991,2]
[392808097,1761979838776,-250.0,0.00014991,2]
[392808099,1761979838785,-3935.0,0.00015,2]
[392808101,1761979838794,-2847195.77419474,0.00015,2]
[392808102,1761979838810,-2819.3521802,0.00015,2]
[392808103,1761979838822,-3828.47347728,0.00015,2]
[392808104,1761979838833,-339.89816524,0.00015,2]
[392808105,1761979840366,-15796.94927913,0.00015,2]
[392808106,1761979840475,-303.94,0.00015,2]
[392808107,1761979840581,-307.5838776,0.00015,2]
[392808120,1761979843230,-462.49078904,0.00015,2]
[392808121,1761979843243,-310.9910294,0.00015,2]
[392808122,1761979843255,-31853.92767919,0.00015,2]
[392808126,1761979846168,-380284.04820263,0.00015,2]
[392808127,1761979846335,-407.96601132,0.00015,2]
[392808128,1761979846433,-806.29279998,0.00015,2]
[392808129,1761979846444,-9463.2888555,0.00015,2]
[392808158,1761979956981,999.0,0.00014958,3]
[392808254,1761980405216,-150.0,0.00014088,2]
[392808255,1761980405239,-450.0,0.00014088,2]
[392808256,1761980407818,-50.0,0.00014088,2]
[392808257,1761980407841,-148.46971435,0.00014088,2]
[392808259,1761980409263,-201.69888766,0.00014088,2]
[392808262,1761980413103,-149.83139799,0.00014088,2]
[392808263,1761980413319,-71.09499215,0.00014088,2]
[392808271,1761980434572,823.0,0.000102,5]
[392808311,1761980567230,-267.73597204,0.00014088,2]
[392808312,1761980567257,-195.0,0.00014195,2]
[392808313,1761980567280,-300.0,0.00014195,2]
[392808314,1761980567304,-250.0,0.00014301,2]
[392808315,1761980567327,-833.50597282,0.00014456,2]
[392808316,1761980567351,-290.44090504,0.00014466,2]
[392808317,1761980567377,-168.0,0.00014515,2]
[392808318,1761980567401,-1200.0,0.00014699,2]
[392808319,1761980567425,-300.0,0.00014699,2]
[392808320,1761980567448,-300.0,0.00014699,2]
[392808321,1761980567471,-895.3171501,0.00014699,2]
[392808324,1761980574368,500.0,0.00013988,2]
[392808338,1761980597124,-161.0,0.00014699,2]
[392808346,1761980601923,200.0,0.00013876,2]
[392808355,1761980631061,-161.0,0.00014625,2]
[392808382,1761980706863,150.0,0.00013488,2]
[392808383,1761980706928,150.0,0.00013987,2]
[392808384,1761980707132,150.0,0.00013488,2]
[392808385,1761980707331,150.0,0.00013488,2]
[392808386,1761980707373,150.0,0.00013987,2]
[392808387,1761980713372,150.0,0.00013488,2]
[392808388,1761980713448,150.0,0.00013987,2]
[392808389,1761980714682,150.0,0.00013488,2]
[392808390,1761980715129,150.0,0.00013488,2]
[392808391,1761980715336,150.0,0.00013488,2]
[392808392,1761980727203,150.0,0.00013488,2]
[392808393,1761980727385,150.0,0.00013488,2]
[392808394,1761980727649,150.0,0.00013987,2]
[392808395,1761980727716,150.0,0.00013488,2]
[392808396,1761980727821,150.0,0.00013488,2]
[392808397,1761980727967,150.0,0.00013488,2]
[392808400,1761980729883,150.0,0.00013488,2]
[392808401,1761980729944,150.0,0.00013987,2]
[392808403,1761980747550,-900.0,0.00014007,2]
[392808410,1761980773284,699.0,0.000102,5]
[392808411,1761980796964,-100.0,0.00014007,2]
[392808412,1761980796987,-150.0,0.00014237,2]
[392808413,1761980797012,-150.0,0.00014237,2]
[392808414,1761980797036,-150.0,0.00014237,2]
[392808415,1761980797060,-150.0,0.00014237,2]
[392808416,1761980797083,-150.0,0.00014237,2]
[392808417,1761980797121,-150.0,0.00014487,2]
[392808418,1761980797145,-150.0,0.00014487,2]
[392808419,1761980797169,-150.0,0.00014487,2]
[392808420,1761980797194,-150.0,0.00014487,2]
[392808421,1761980797220,-150.0,0.00014487,2]
[392808422,1761980797245,-143.6828499,0.00014699,2]
[392808423,1761980797270,-1200.0,0.00014699,2]
[392808424,1761980797292,-150.0,0.000147,2]
[392808425,1761980797315,-150.0,0.000147,2]
[392808426,1761980797339,-350.45,0.000147,2]
[392808427,1761980797361,-476.55,0.000147,2]
[392808428,1761980797384,-150.0,0.000147,2]
[392808429,1761980797406,-415.29,0.000147,2]
[392808430,1761980797430,-1097.14,0.000147,2]
[392808431,1761980797456,-415.29,0.000147,2]
[392808432,1761980797480,-150.0,0.000147,2]
[392808433,1761980797507,-168.0,0.00014727,2]
[392808434,1761980797531,-248.71531821,0.00014805,2]
[392808435,1761980797557,-1466.476,0.00014813,2]
[392808436,1761980797582,-150.0,0.00014813,2]
[392808437,1761980797606,-668.40583189,0.00014814,2]
[392808482,1761980835560,188.23951181,0.00013,2]
[392808645,1761980845144,826.71077868,0.00013,2]
[392808647,1761980848177,500.5298232,0.00013,2]
[392808648,1761980848271,480.95255913,0.00013,2]
[392808649,1761980848665,500.0,0.00013,2]
[392808650,1761980849035,500.0,0.00012012,2]
[392808656,1761980897393,-198.46971435,0.00014009,2]
[392808657,1761980899247,-220.92639014,0.00014009,2]
[392808658,1761980901344,-46.37389551,0.00014009,2]
[392808659,1761980927341,419.0,0.000102,5]
[392808660,1761980930204,-488.21016317,0.00014011,2]
[392808662,1761980958735,535.0,0.000102,5]
[392808678,1761981032364,-11.78983683,0.00014011,2]
[392808679,1761981032374,-1475.46984186,0.0001475,2]
[392808680,1761981032383,-248.71531821,0.00014805,2]
[392808681,1761981032393,-89.08857848,0.00014814,2]
[392808682,1761981032477,-848.94109769,0.00014814,2]
[392808683,1761981032509,-33506.65042868,0.00014814,2]
[392808684,1761981032519,-2386.25952352,0.0001485,2]
[392808685,1761981032527,-150.0,0.00014872,2]
[392808686,1761981032537,-500.95705604,0.00014873,2]
[392808687,1761981032546,-500.0,0.00014873,2]
[392808688,1761981032555,-500.0,0.00014873,2]
[392808689,1761981032565,-500.0,0.00014873,2]
[392808690,1761981032573,-247.05371424,0.00014898,2]
[392808691,1761981032582,-709.04,0.000149,2]
[392808692,1761981032593,-500.0,0.00014932,2]
[392808693,1761981032602,-168.0,0.0001494,2]
[392808694,1761981032612,-500.0,0.00014959,2]
[392808696,1761981032621,-1378.59,0.0001496,2]
[392808698,1761981032631,-646.0,0.00014968,2]
[392808700,1761981032640,-171.50950967,0.00014973,2]
[392808702,1761981032649,-500.0,0.00014973,2]
[392808703,1761981032660,-500.0,0.00014973,2]
[392808705,1761981032669,-592.65085401,0.00014973,2]
[392808707,1761981032679,-500.0,0.00014973,2]
[392808709,1761981032689,-500.0,0.00014973,2]
[392808711,1761981032699,-511.4774966,0.00014973,2]
[392808713,1761981032710,-500.0,0.00014973,2]
[392808715,1761981032722,-500.0,0.00014973,2]
[392808717,1761981032731,-500.0,0.00014973,2]
[392808719,1761981032740,-505.26497127,0.00014973,2]
[392808721,1761981032751,-500.0,0.00014973,2]
[392808723,1761981032760,-516.43133353,0.00014973,2]
[392808725,1761981032769,-500.0,0.00014973,2]
[392808730,1761981032785,-500.0,0.00014973,2]
[392808733,1761981032796,-886.03,0.00014973,2]
[392808736,1761981032806,-982.04624044,0.00014985,2]
[392808739,1761981032816,-150.0,0.00014986,2]
[392808742,1761981032825,-192.41993,0.00014986,2]
[392808776,1761981033103,-150.0,0.00014986,2]
[392808777,1761981033113,-156.76046149,0.00014986,2]
[392808778,1761981033122,-155.98502859,0.00014986,2]
[392808779,1761981033131,-154.48626728,0.00014986,2]
[392808780,1761981033141,-150.0,0.00014986,2]
[392808781,1761981033150,-154.24920313,0.00014986,2]
[392808782,1761981033160,-170.1521678,0.00014986,2]
[392808783,1761981033169,-266.61663532,0.00014986,2]
[392808784,1761981033178,-150.0,0.00014986,2]
[392808786,1761981033187,-185.4081276,0.00014986,2]
[392808788,1761981033196,-262.17229457,0.00014986,2]
[392808789,1761981033205,-164.39279166,0.00014991,2]
[392808791,1761981033214,-156.70841714,0.00014991,2]
[392808793,1761981033223,-514.84070869,0.00014991,2]
[392808795,1761981033231,-646.65982734,0.00014991,2]
[392808797,1761981033241,-205.48895127,0.00014991,2]
[392808800,1761981033255,-187.78006525,0.00014991,2]
[392808802,1761981033264,-211.11556816,0.00014991,2]
[392808804,1761981033273,-250.0,0.00014991,2]
[392808806,1761981033283,-250.0,0.00014991,2]
[392808808,1761981033292,-535.90639727,0.00014991,2]
[392808810,1761981033301,-152.30214979,0.00014991,2]
[392808812,1761981033310,-250.0,0.00014991,2]
[392808814,1761981033319,-500.0,0.00014991,2]
[392808816,1761981033329,-500.0,0.00014991,2]
[392808818,1761981033338,-500.0,0.00014991,2]
[392808820,1761981033348,-541.37027117,0.00014991,2]
[392808821,1761981033357,-500.0,0.00014991,2]
[392808824,1761981033367,-500.0,0.00014991,2]
[392808826,1761981033376,-500.0,0.00014991,2]
[392808827,1761981033385,-500.0,0.00014991,2]
[392808830,1761981033395,-500.0,0.00014991,2]
[392808832,1761981033404,-500.0,0.00014991,2]
[392808834,1761981033413,-500.0,0.00014991,2]
[392808836,1761981033422,-235.02964706,0.00014991,2]
[392808837,1761981033431,-322.6107,0.00014991,2]
[392808838,1761981033442,-250.0,0.00014991,2]
[392808839,1761981033451,-1251.0,0.00014998,2]
[392808840,1761981033461,-500.0,0.00014999,2]
[392808841,1761981033470,-500.0,0.00014999,2]
[392808842,1761981033480,-500.0,0.00014999,2]
[392808843,1761981033490,-300.0,0.00014999,2]
[392808844,1761981033499,-500.0,0.00014999,2]
[392808845,1761981033509,-500.0,0.00014999,2]
[392808846,1761981033518,-500.0,0.00014999,2]
[392808847,1761981033527,-500.0,0.00014999,2]
[392808848,1761981033536,-500.0,0.00014999,2]
[392808849,1761981033545,-500.0,0.00014999,2]
[392808850,1761981033555,-500.0,0.00014999,2]
[392808851,1761981033564,-500.0,0.00014999,2]
[392808852,1761981033574,-500.0,0.00014999,2]
[392808853,1761981033583,-500.0,0.00014999,2]
[392808854,1761981033593,-500.0,0.00014999,2]
[392808855,1761981033602,-500.0,0.00014999,2]
[392808856,1761981033611,-617.45485413,0.00014999,2]
[392808857,1761981033620,-497.75803678,0.00014999,2]
[392808858,1761981033630,-500.0,0.00014999,2]
[392808859,1761981033639,-500.0,0.00014999,2]
[392808860,1761981033649,-150.0,0.00014999,2]
[392808861,1761981033658,-295.33139851,0.00014999,2]
[392808862,1761981033667,-150.0,0.00014999,2]
[392808863,1761981033677,-150.0,0.00014999,2]
[392808864,1761981033686,-150.0,0.00014999,2]
[392808865,1761981033696,-150.0,0.00014999,2]
[392808866,1761981033705,-150.0,0.00014999,2]
[392808867,1761981033720,-150.0,0.00014999,2]
[392808868,1761981033730,-500.0,0.00014999,2]
[392808869,1761981033739,-150.4129963,0.00014999,2]
[392808870,1761981033748,-150.0,0.00014999,2]
[392808871,1761981033758,-150.0,0.00014999,2]
[392808872,1761981033767,-150.0,0.00014999,2]
[392808873,1761981033777,-500.0,0.00014999,2]
[392808874,1761981033786,-500.0,0.00014999,2]
[392808875,1761981033796,-500.0,0.00014999,2]
[392808876,1761981033810,-345.9680587,0.00014999,2]
[392808877,1761981033820,-500.0,0.00014999,2]
[392808878,1761981033829,-190.82323287,0.00014999,2]
[392808879,1761981033839,-237.78375784,0.00014999,2]
[392808880,1761981033848,-500.0,0.00014999,2]
[392808881,1761981033858,-500.0,0.00014999,2]
[392808882,1761981033867,-500.0,0.00014999,2]
[392808883,1761981033876,-460.4433398,0.00014999,2]
[392808884,1761981033885,-203.04390248,0.00014999,2]
[392808885,1761981033895,-150.0,0.00014999,2]
[392808886,1761981033904,-500.0,0.00014999,2]
[392808887,1761981033914,-150.0,0.00014999,2]
[392808888,1761981033923,-259.681106,0.00014999,2]
[392808889,1761981033933,-150.0,0.00014999,2]
[392808890,1761981033942,-152.58559931,0.00014999,2]
[392808891,1761981033952,-500.0,0.00014999,2]
[392808892,1761981033961,-500.0,0.00014999,2]
[392808893,1761981033970,-150.0,0.00014999,2]
[392808894,1761981033979,-150.0,0.00014999,2]
[392808895,1761981033989,-500.0,0.00014999,2]
[392808896,1761981033998,-150.0,0.00014999,2]
[392808897,1761981034007,-150.0,0.00014999,2]
[392808898,1761981034016,-150.0,0.00014999,2]
[392808899,1761981034026,-500.0,0.00014999,2]
[392808900,1761981034036,-150.0,0.00014999,2]
[392808901,1761981034045,-150.0,0.00014999,2]
[392808902,1761981034055,-150.0,0.00014999,2]
[392808903,1761981034065,-150.0,0.00014999,2]
[392808904,1761981034074,-500.0,0.00014999,2]
[392808905,1761981034083,-150.0,0.00014999,2]
[392808906,1761981034093,-150.0,0.00014999,2]
[392808907,1761981034102,-150.0,0.00014999,2]
[392808908,1761981034111,-150.0,0.00014999,2]
[392808909,1761981034121,-500.0,0.00014999,2]
[392808910,1761981034130,-500.0,0.00014999,2]
[392808911,1761981034140,-500.0,0.00014999,2]
[392808912,1761981034149,-500.0,0.00014999,2]
[392808913,1761981034159,-500.0,0.00014999,2]
[392808914,1761981034168,-671.01388889,0.00014999,2]
[392808915,1761981034177,-3929.0,0.00015,2]
[392808916,1761981034189,-96561.48564636,0.00015,2]
[392808917,1761981034203,-11589.40469995,0.00015,2]
[392808920,1761981038215,-11059.09667552,0.00015,2]
[392808921,1761981038327,-2862392.87419997,0.00015,2]
[392808922,1761981038438,-15152.49673133,0.00015,2]
[392808925,1761981040486,-1348916.9873715,0.00015,2]
[392808926,1761981041246,-23011.68317273,0.00015,2]
[392808927,1761981041266,-254.52879237,0.00015,2]
[392808964,1761981043561,-782.46892,0.00015,2]
[392808970,1761981046436,-411.54000003,0.00015,2]